bitfinex/quotes_SOLUSD_20240716
["timestamp","ask_amount","ask_price","bid_price","bid_amount"]
[1721149794199,0.8405567,161.25,161.18,29.63]
[1721149794388,11.19203441,161.24,161.19,1.24054339]
[1721149794575,11.19203441,161.23,161.19,1.24054339]
[1721149794985,0.8405567,161.25,161.19,1.24054339]
[1721149795183,11.19155469,161.24,161.19,1.24054339]
[1721149795376,0.8405567,161.25,161.18,29.63]
[1721149795568,11.19139022,161.24,161.18,29.63]
[1721149795791,0.8405567,161.25,161.18,29.63]
[1721149796114,0.8405567,161.25,161.21,29.63]
[1721149796265,0.8405567,161.25,161.22,1.24016589]
[1721149796994,0.8405567,161.25,161.24,29.63]
[1721149797589,0.8405567,161.25,161.24,30.86994735]
[1721149798276,0.8405567,161.25,161.24,99.8697]
[1721149798694,0.8405567,161.25,161.24,101.10952347]
[1721149799091,16.087,161.36,161.24,101.10952347]
[1721149799399,16.087,161.36,161.28,29.63]
[1721149799575,16.087,161.36,161.29,1.23943912]
[1721149799770,16.087,161.36,161.3,1.23936227]
[1721149800376,16.087,161.36,161.28,29.63]
[1721149800578,22.2844,161.36,161.28,29.63]
[1721149800889,6.3764,161.38,161.28,29.63]
[1721149802002,12.573,161.38,161.28,29.63]
[1721149802482,21.375,161.4,161.31,29.63]
[1721149802681,20.0,161.39,161.32,1.19446717]
[1721149802901,15.179,161.4,161.33,1.19439313]
[1721149803914,15.179,161.4,161.31,29.63]
[1721149804590,0.8405567,161.42,161.31,29.63]
[1721149804904,0.8405567,161.42,161.28,29.63]
[1721149804905,15.4903,161.4,161.28,6.4664]
[1721149805110,6.1973,161.36,161.28,6.4664]
[1721149805319,6.1978,161.35,161.28,6.4664]
[1721149805678,6.1972,161.37,161.28,6.4664]
[1721149805875,6.1972,161.37,161.29,30.18641216]
[1721149806102,6.1972,161.37,161.29,29.63]
[1721149806305,6.1973,161.36,161.29,29.63]
[1721149806802,6.1972,161.37,161.28,6.4664]
[1721149806987,22.7477,161.39,161.29,29.63]
[1721149807389,22.4199,161.39,161.3,1.23634182]
[1721149807708,22.4199,161.39,161.29,29.63]
[1721149808087,6.1966,161.38,161.29,29.63]
[1721149808286,22.4199,161.39,161.29,29.63]
[1721149808685,16.2237,161.39,161.29,29.63]
[1721149809388,6.1968,161.38,161.29,29.63]
[1721149809585,16.2237,161.39,161.29,29.63]
[1721149809791,6.1972,161.37,161.3,0.76877038]
[1721149810099,16.2237,161.39,161.3,0.76877038]
[1721149810304,22.4198,161.39,161.3,0.76877038]
[1721149810511,22.4199,161.39,161.29,29.63]
[1721149810885,6.1967,161.38,161.29,29.63]
[1721149811086,16.2237,161.39,161.29,29.63]
[1721149811306,15.4927,161.37,161.28,6.4664]
[1721149811518,65.0,161.38,161.28,6.4664]
[1721149811998,75.0,161.38,161.28,6.4664]
[1721149812203,6.1979,161.35,161.28,6.4664]
[1721149812414,65.0,161.38,161.28,6.4664]
[1721149812582,20.0,161.38,161.28,6.4664]
[1721149812918,6.1977,161.35,161.28,6.4664]
[1721149814187,20.0,161.38,161.28,6.4664]
[1721149814388,45.0,161.37,161.28,6.4664]
[1721149814692,45.0,161.37,161.29,29.63]
[1721149814919,20.0,161.38,161.29,29.63]
[1721149815214,6.1961,161.39,161.29,29.63]
[1721149815400,6.196,161.4,161.29,29.63]
[1721149815602,6.1962,161.39,161.29,30.64882944]
[1721149815803,6.1962,161.39,161.29,29.63]
[1721149816013,6.1965,161.38,161.29,29.63]
[1721149816317,10.0,161.4,161.29,29.63]
[1721149816521,65.0,161.39,161.28,6.4664]
[1721149816716,6.1983,161.34,161.28,7.70622029]
[1721149816922,10.0,161.38,161.26,29.63]
[1721149816923,6.1977,161.35,161.26,29.63]
[1721149817420,6.1973,161.36,161.26,29.63]
[1721149817605,45.0,161.35,161.26,29.63]
[1721149817807,6.1987,161.33,161.26,29.63]
[1721149818111,60.0491,161.35,161.24,6.1567]
[1721149818289,20.0,161.34,161.24,6.1567]
[1721149818498,6.1993,161.31,161.24,6.1567]
[1721149819006,6.1989,161.32,161.24,6.1567]
[1721149820026,6.1993,161.31,161.23,44.7561]
[1721149821324,6.1989,161.32,161.23,44.7561]
[1721149821521,10.0,161.33,161.2,36.0373]
[1721149821708,6.2,161.29,161.2,6.4073]
[1721149821913,6.2004,161.28,161.2,6.4073]
[1721149822209,51.2009,161.27,161.2,6.4073]
[1721149822602,45.0,161.27,161.19,29.63]
[1721149822804,61.2141,161.27,161.16,6.4601]
[1721149823110,6.2026,161.23,161.13,29.63]
[1721149823431,45.0,161.22,161.13,29.63]
[1721149823597,6.2019,161.24,161.13,29.63]
[1721149823800,6.1365,161.25,161.16,29.63]
[1721149824029,12.3383,161.25,161.13,29.63]
[1721149824217,45.0,161.24,161.13,29.63]
[1721149824413,51.2022,161.24,161.13,29.63]
[1721149824933,51.202,161.24,161.13,29.63]
[1721149825226,6.2023,161.23,161.13,29.63]
[1721149825431,51.202,161.24,161.14,29.63]
[1721149825904,45.0,161.24,161.14,29.63]
[1721149826101,6.2026,161.23,161.14,29.63]
[1721149826305,51.2022,161.24,161.14,29.63]
[1721149826727,6.2033,161.21,161.11,6.4601]
[1721149827029,45.0,161.24,161.13,29.63]
[1721149827333,20.0,161.23,161.13,29.63]
[1721149828711,26.2023,161.23,161.13,29.63]
[1721149829228,6.2029,161.22,161.13,29.63]
[1721149829836,26.2024,161.23,161.13,29.63]
[1721149830009,6.2027,161.22,161.13,29.63]
[1721149830205,45.0,161.21,161.11,6.4601]
[1721149830734,45.0,161.22,161.13,29.63]
[1721149830907,6.2027,161.22,161.14,1.0681281]
[1721149831307,6.2027,161.22,161.13,29.63]
[1721149831537,6.2031,161.21,161.13,29.63]
[1721149832032,10.0,161.22,161.11,6.4601]
[1721149832225,65.0,161.21,161.11,6.4601]
[1721149832417,65.0,161.21,161.05,279.48]
[1721149832418,6.2043,161.18,161.07,36.0965]
[1721149833226,15.4628,161.19,161.07,36.0965]
[1721149833408,45.0,161.18,161.07,36.0965]
[1721149834122,6.205,161.16,161.07,36.0965]
[1721149834314,6.2054,161.15,161.07,36.0965]
[1721149835006,6.2058,161.14,161.07,6.4665]
[1721149835315,10.0,161.17,161.03,6.3958]
[1721149835316,51.2061,161.13,161.03,6.3958]
[1721149835631,6.2076,161.1,160.99,52.1673]
[1721149835820,55.0,161.13,160.99,52.1673]
[1721149836020,16.5763,161.11,160.99,52.1673]
[1721149836216,6.2077,161.09,160.99,52.1673]
[1721149836842,6.2085,161.07,160.99,52.1673]
[1721149837022,16.3648,161.09,160.99,6.5952]
[1721149837219,16.3648,161.09,160.96,29.63]
[1721149837220,6.2089,161.06,160.96,29.63]
[1721149837431,6.2088,161.07,160.96,30.8720732]
[1721149837745,45.0,161.08,160.96,29.63]
[1721149837915,16.5763,161.11,161.0,29.63]
[1721149838119,16.5763,161.11,161.01,1.24168602]
[1721149838345,16.5763,161.11,161.02,1.24170178]
[1721149838346,6.2075,161.1,161.02,1.24170178]
[1721149838841,16.5763,161.11,161.02,1.24170178]
[1721149839362,22.7834,161.11,161.03,1.24169986]
[1721149839649,12.571,161.13,161.0,29.63]
[1721149839937,71.2065,161.12,161.0,29.63]
[1721149840241,65.0,161.12,161.03,35.9797]
[1721149840433,20.0,161.12,161.04,1.24163242]
[1721149840643,22.7818,161.15,161.05,1.24146542]
[1721149840860,45.0,161.14,161.05,1.24146542]
[1721149841175,10.0,161.19,161.06,29.63]
[1721149841346,26.6448,161.2,161.06,29.63]
[1721149841646,26.6448,161.2,161.07,0.79078593]
[1721149841820,6.2041,161.19,161.08,1.24116537]
[1721149844124,6.2043,161.18,161.08,1.04597007]
[1721149844544,6.2034,161.21,161.09,29.63]
[1721149844751,26.2035,161.2,161.09,30.67590517]
[1721149845048,6.2024,161.23,161.12,29.63]
[1721149845842,21.2238,161.24,161.15,29.63]
[1721149846039,15.0217,161.24,161.15,29.63]
[1721149846244,40.5227,161.28,161.15,29.63]
[1721149846454,40.5227,161.28,161.16,0.82630767]
[1721149846455,30.5227,161.28,161.16,0.82630767]
[1721149846751,6.2019,161.24,161.16,0.82630767]
[1721149846920,30.5227,161.28,161.15,29.63]
[1721149847127,6.2014,161.26,161.16,1.23895687]
[1721149847345,6.2014,161.26,161.15,29.63]
[1721149847533,15.0217,161.28,161.15,29.63]
[1721149847844,6.2022,161.24,161.15,29.63]
[1721149848045,6.202,161.24,161.15,29.63]
[1721149848351,6.2023,161.23,161.15,29.63]
[1721149848557,15.5026,161.27,161.15,29.63]
[1721149848724,65.0,161.26,161.15,29.63]
[1721149848925,6.2021,161.24,161.15,29.63]
[1721149849150,6.2028,161.22,161.15,29.63]
[1721149849342,6.2024,161.23,161.15,29.63]
[1721149850133,15.5044,161.25,161.15,29.63]
[1721149850359,6.2024,161.23,161.15,29.63]
[1721149850830,65.0,161.24,161.15,29.63]
[1721149851030,6.2023,161.23,161.16,1.24006916]
[1721149851534,65.0,161.24,161.16,1.24006916]
[1721149851738,6.2023,161.23,161.15,29.63]
[1721149851941,65.0,161.24,161.13,1.24067001]
[1721149852252,6.2042,161.18,161.11,29.63]
[1721149852763,65.0,161.24,161.11,29.63]
[1721149852942,6.2027,161.22,161.11,29.63]
[1721149853137,26.202,161.24,161.14,29.63]
[1721149853341,6.2027,161.22,161.14,29.63]
[1721149853546,6.2023,161.23,161.14,29.63]
[1721149853751,20.0,161.24,161.15,1.24075528]
[1721149854053,25.5053,161.24,161.14,29.63]
[1721149854360,6.2028,161.22,161.14,29.63]
[1721149854863,20.0,161.25,161.14,29.63]
[1721149855353,6.2024,161.23,161.14,29.63]
[1721149855665,20.0,161.25,161.14,29.63]
[1721149855666,6.202,161.24,161.14,29.63]
[1721149855863,6.2026,161.23,161.14,29.63]
[1721149856841,6.2019,161.24,161.14,29.63]
[1721149857649,6.2024,161.23,161.14,29.63]
[1721149858537,20.0,161.25,161.14,29.63]
[1721149858840,26.2016,161.25,161.14,29.63]
[1721149859050,20.0,161.25,161.14,29.63]
[1721149859365,6.2027,161.22,161.14,29.63]
[1721149859672,6.2027,161.22,161.12,29.63]
[1721149860465,22.8866,161.17,161.04,6.4935]
[1721149860759,25.5166,161.12,160.99,6.4935]
[1721149860973,6.2089,161.06,160.99,6.4935]
[1721149861145,10.0,161.1,160.99,6.4935]
[1721149861341,45.0,161.09,160.99,6.4935]
[1721149861852,6.2088,161.06,160.99,6.4935]
[1721149862369,6.2096,161.04,160.97,29.63]
[1721149862574,15.5209,161.08,160.97,29.63]
[1721149862754,45.0,161.09,160.97,29.63]
[1721149862947,6.2081,161.08,161.0,29.63]
[1721149863272,6.2092,161.06,160.97,29.63]
[1721149863442,6.2088,161.06,160.97,29.63]
[1721149863645,10.0,161.14,160.97,29.63]
[1721149863960,6.2077,161.09,160.97,29.63]
[1721149864163,6.2081,161.08,160.97,29.63]
[1721149864550,6.2077,161.09,160.98,45.0]
[1721149864953,20.0,161.13,161.0,29.63]
[1721149865164,6.2077,161.09,161.01,1.24168059]
[1721149865353,6.2077,161.09,161.0,29.63]
[1721149865553,35.5162,161.13,161.0,29.63]
[1721149865752,6.208,161.09,161.0,29.63]
[1721149866048,6.2081,161.08,161.0,29.63]
[1721149866253,10.0,161.12,160.97,29.63]
[1721149866458,6.2091,161.06,160.97,29.63]
[1721149866666,6.2093,161.05,160.97,29.63]
[1721149867143,6.2088,161.07,160.97,29.63]
[1721149867338,6.2089,161.06,160.97,29.63]
[1721149867544,6.2097,161.04,160.97,29.63]
[1721149867943,6.2102,161.03,160.97,29.63]
[1721149868159,6.2102,161.03,160.95,22.3686]
[1721149868352,6.2097,161.04,160.95,22.3686]
[1721149868568,6.2092,161.05,160.95,22.3686]
[1721149868960,6.2096,161.04,160.95,22.3686]
[1721149869271,6.2093,161.05,160.95,22.3686]
[1721149869567,6.2098,161.04,160.95,22.3686]
[1721149869958,6.21,161.03,160.95,22.3686]
[1721149872473,6.2096,161.04,160.95,22.3686]
[1721149873056,35.5228,161.06,160.95,22.3686]
[1721149873260,6.2111,161.01,160.95,6.6243]
[1721149873555,6.2105,161.02,160.95,6.6243]
[1721149874048,65.0,161.05,160.95,6.6243]
[1721149874250,6.2103,161.03,160.95,6.6243]
[1721149874547,6.2113,161.0,160.95,6.6243]
[1721149874750,6.2108,161.01,160.95,6.6243]
[1721149875279,6.2104,161.02,160.95,6.6243]
[1721149875572,6.2108,161.01,160.95,6.6243]
[1721149875769,6.2112,161.0,160.95,6.6243]
[1721149876073,6.2116,160.99,160.95,6.6243]
[1721149876281,6.2112,161.0,160.95,6.6243]
[1721149876451,25.5245,161.04,160.91,21.6957]
[1721149876452,15.5265,161.02,160.91,21.6957]
[1721149876649,65.0,161.01,160.91,21.6957]
[1721149876851,6.212,160.98,160.91,21.6957]
[1721149877278,6.2123,160.97,160.91,21.6957]
[1721149877755,65.0,161.01,160.91,6.4374]
[1721149877957,6.2116,160.99,160.91,6.4374]
[1721149878164,65.0,161.01,160.91,6.4374]
[1721149878376,6.2112,161.0,160.91,6.4374]
[1721149878583,6.2116,160.99,160.91,6.4374]
[1721149879164,65.0,161.01,160.91,6.4374]
[1721149879669,6.2119,160.98,160.91,6.4374]
[1721149880168,6.2123,160.97,160.91,6.4374]
[1721149880679,6.212,160.98,160.91,6.4374]
[1721149880881,6.2116,160.99,160.91,6.4374]
[1721149881057,6.2112,161.0,160.91,6.4374]
[1721149881861,6.2116,160.99,160.91,6.4374]
[1721149882080,6.212,160.98,160.91,6.4374]
[1721149882591,65.0,161.01,160.91,6.4374]
[1721149882884,6.2119,160.98,160.91,6.4374]
[1721149883062,6.2116,160.99,160.91,6.4374]
[1721149883385,6.2112,161.0,160.91,6.4374]
[1721149883690,6.2112,161.0,160.92,0.37753824]
[1721149883854,22.5972,161.08,160.95,29.63]
[1721149884054,16.5881,161.08,160.95,29.63]
[1721149884279,6.2089,161.06,160.95,29.63]
[1721149885054,6.2093,161.05,160.95,29.63]
[1721149885258,15.5196,161.09,160.96,6.4104]
[1721149885483,16.5698,161.12,161.01,29.63]
[1721149885783,20.0,161.15,161.01,29.63]
[1721149885784,25.5136,161.15,161.01,29.63]
[1721149885968,22.8172,161.16,161.04,29.63]
[1721149886164,6.2064,161.13,161.04,29.63]
[1721149886365,22.8172,161.16,161.04,29.63]
[1721149886366,6.2066,161.12,161.04,29.63]
[1721149886581,15.5146,161.14,161.04,29.63]
[1721149886883,6.2081,161.08,161.02,6.1989]
[1721149887084,6.2087,161.07,161.02,6.1989]
[1721149887282,10.0,161.11,161.02,6.1989]
[1721149887471,20.0,161.1,161.02,6.1989]
[1721149887671,45.0,161.09,160.98,29.63]
[1721149887868,6.2093,161.05,160.98,29.63]
[1721149888071,6.2093,161.05,160.97,6.4348]
[1721149888383,6.2089,161.06,160.97,6.4348]
[1721149889083,6.2103,161.03,160.97,6.4348]
[1721149889488,25.5214,161.07,160.97,6.4348]
[1721149889665,6.2105,161.02,160.97,6.4348]
[1721149889964,6.2101,161.03,160.97,6.4348]
[1721149890170,20.0,161.08,160.97,6.4348]
[1721149890377,45.0,161.07,160.97,6.4348]
[1721149890570,20.0,161.06,160.97,6.4348]
[1721149890770,45.0,161.07,160.97,6.4348]
[1721149891288,51.2087,161.07,160.97,6.4348]
[1721149891488,20.0,161.08,160.98,0.39441379]
[1721149891680,20.0,161.08,160.97,6.4348]
[1721149891681,26.2082,161.08,160.99,0.48231219]
[1721149891874,6.2074,161.1,161.0,1.24024268]
[1721149892187,6.2085,161.07,161.0,1.24024268]
[1721149892396,6.2085,161.07,160.97,6.4348]
[1721149892397,10.0,161.13,161.01,1.24186662]
[1721149892580,6.2076,161.1,161.02,1.24181209]
[1721149892775,6.2076,161.1,160.98,1.24174986]
[1721149892992,6.2076,161.1,160.98,46.24174986]
[1721149893198,6.2078,161.09,160.99,1.24173498]
[1721149893994,15.5166,161.12,160.99,1.24173498]
[1721149894176,6.2083,161.08,160.98,45.0]
[1721149894806,6.2077,161.1,160.98,45.0]
[1721149895090,6.2075,161.1,160.98,63.66]
[1721149895293,35.5136,161.15,160.98,63.66]
[1721149895294,6.2066,161.12,161.0,52.06]
[1721149895499,10.0,161.17,161.01,45.0]
[1721149895797,16.5698,161.16,161.02,7.7082927]
[1721149896172,32.0827,161.16,161.02,6.4681]
[1721149896399,6.2076,161.1,161.02,6.4681]
[1721149896573,6.2079,161.09,161.02,6.4681]
[1721149896893,6.2073,161.1,161.02,6.4681]
[1721149897100,6.2065,161.13,161.03,1.24164017]
[1721149897397,6.2067,161.12,161.03,1.24164017]
[1721149897891,6.2061,161.13,161.03,1.24164017]
[1721149898099,6.2067,161.12,161.02,6.4681]
[1721149898486,16.5698,161.16,161.02,6.4681]
[1721149898487,6.2062,161.13,161.02,6.4681]
[1721149898689,6.2065,161.12,161.02,6.4681]
[1721149898881,6.2062,161.13,161.02,6.4681]
[1721149899196,6.2062,161.13,161.02,25.1281]
[1721149899401,6.2058,161.14,161.03,45.0]
[1721149899782,6.2052,161.16,161.03,63.66]
[1721149900081,48.193,161.2,161.05,15.7563]
[1721149900279,48.193,161.2,161.06,0.52508019]
[1721149900473,26.0787,161.2,161.07,6.3469]
[1721149900673,6.2045,161.18,161.08,45.0]
[1721149900983,6.2039,161.19,161.08,45.0]
[1721149901284,6.2036,161.2,161.08,45.0]
[1721149901494,6.2039,161.19,161.08,45.0]
[1721149902072,6.2046,161.17,161.08,45.0]
[1721149902780,6.2039,161.19,161.08,45.0]
[1721149903895,6.2042,161.18,161.08,45.0]
[1721149904098,15.508,161.21,161.07,6.3469]
[1721149904298,6.2044,161.18,161.07,6.3469]
[1721149904506,65.0,161.2,161.07,25.0069]
[1721149904804,71.2037,161.2,161.08,45.0]
[1721149904998,65.0,161.2,161.08,45.0]
[1721149905308,6.2039,161.19,161.08,45.0]
[1721149905897,65.0,161.2,161.08,45.0]
[1721149906093,6.2042,161.18,161.08,45.0]
[1721149906402,6.2039,161.19,161.08,45.0]
[1721149906606,6.2042,161.18,161.08,45.0]
[1721149906982,6.2039,161.19,161.08,45.0]
[1721149907801,6.2045,161.18,161.08,45.0]
[1721149908105,71.2037,161.2,161.08,45.0]
[1721149908297,71.2037,161.2,161.1,29.63]
[1721149908497,6.2038,161.19,161.1,29.63]
[1721149909081,71.2035,161.2,161.1,29.63]
[1721149909277,26.2035,161.2,161.1,29.63]
[1721149909589,20.0,161.2,161.1,29.63]
[1721149909784,6.2038,161.19,161.1,29.63]
[1721149910924,6.2043,161.18,161.1,29.63]
[1721149911108,15.51,161.19,161.07,35.9769]
[1721149911285,55.0,161.18,161.07,35.9769]
[1721149911609,6.2058,161.14,161.07,35.9769]
[1721149911996,6.2065,161.12,161.07,6.3469]
[1721149912208,10.0,161.16,161.07,6.3469]
[1721149912388,6.2064,161.13,161.07,6.3469]
[1721149912786,6.2054,161.15,161.07,6.3469]
[1721149913584,6.2059,161.14,161.07,6.3469]
[1721149913785,45.0,161.13,161.05,15.7563]
[1721149913988,6.2066,161.12,161.05,15.7563]
[1721149914308,6.207,161.11,161.03,6.3873]
[1721149914610,6.2066,161.12,161.03,6.3873]
[1721149915503,45.0,161.13,161.03,6.3873]
[1721149915711,51.2062,161.13,161.03,6.3873]
[1721149916587,45.0,161.13,161.05,29.63]
[1721149916894,51.2058,161.14,161.05,29.63]
[1721149918512,6.2058,161.14,161.05,29.63]
[1721149918907,6.2063,161.13,161.05,29.63]
[1721149919104,16.303,161.16,161.05,29.63]
[1721149919416,65.0,161.15,161.05,29.63]
[1721149919716,90.5137,161.15,161.05,29.63]
[1721149919918,6.207,161.11,161.03,6.3873]
[1721149920599,25.516,161.13,161.03,6.3873]
[1721149920803,6.2074,161.1,161.03,6.3873]
[1721149921211,6.2081,161.08,161.03,6.3873]
[1721149921519,6.2081,161.08,161.01,15.593]
[1721149921693,45.0,161.12,161.01,15.593]
[1721149921896,20.0,161.11,161.01,15.593]
[1721149922516,6.2074,161.1,161.01,15.593]
[1721149923414,20.0,161.11,161.01,15.593]
[1721149923609,39.63,161.17,161.02,29.63]
[1721149923610,6.2062,161.13,161.02,29.63]
[1721149924706,6.2058,161.14,161.02,29.63]
[1721149924889,35.5102,161.19,161.05,29.63]
[1721149925091,10.0,161.19,161.05,29.63]
[1721149925321,20.0,161.19,161.05,29.63]
[1721149925494,6.2053,161.16,161.05,29.63]
[1721149926320,6.2054,161.15,161.05,29.63]
[1721149927030,6.2046,161.17,161.05,29.63]
[1721149927199,6.2046,161.17,161.08,29.63]
[1721149927399,6.205,161.16,161.08,29.63]
[1721149927608,6.2046,161.17,161.05,29.63]
[1721149928323,6.2046,161.17,161.06,45.0]
[1721149928622,6.2046,161.17,161.08,29.63]
[1721149929228,10.0,161.23,161.08,29.63]
[1721149929229,20.0,161.23,161.1,6.6628]
[1721149929398,6.2038,161.19,161.1,6.6628]
[1721149929597,6.2042,161.18,161.1,6.6628]
[1721149930104,6.2046,161.17,161.1,6.6628]
[1721149930319,6.2042,161.18,161.1,6.6628]
[1721149930526,15.5086,161.21,161.1,6.6628]
[1721149930707,86.19616262,161.2,161.1,6.6628]
[1721149931017,11.19696483,161.19,161.1,6.6628]
[1721149931253,6.2052,161.16,161.1,6.6628]
[1721149932627,6.2064,161.13,161.06,6.1501]
[1721149933302,6.2066,161.12,161.06,6.1501]
[1721149933715,6.2073,161.1,161.02,6.1233]
[1721149934225,6.207,161.11,161.02,6.1233]
[1721149934626,20.0,161.14,161.02,6.1233]
[1721149934824,10.0,161.12,161.02,6.1233]
[1721149935031,6.2088,161.07,161.02,6.1233]
[1721149935208,10.0,161.1,161.01,16.3571]
[1721149935538,65.0,161.09,161.01,16.3571]
[1721149935707,6.2088,161.06,160.98,36.1966]
[1721149936208,6.2085,161.07,160.98,36.1966]
[1721149936921,45.0,161.06,160.98,36.1966]
[1721149937116,65.0,161.09,160.98,36.1966]
[1721149937317,6.2081,161.08,160.98,36.1966]
[1721149937633,65.0,161.09,160.98,36.1966]
[1721149937838,71.208,161.09,160.98,36.1966]
[1721149938033,65.0,161.09,160.98,36.1966]
[1721149938327,6.2073,161.1,161.01,29.63]
[1721149938638,20.0,161.12,161.01,29.63]
[1721149938844,20.0,161.11,161.01,29.63]
[1721149939136,26.207,161.11,161.01,29.63]
[1721149939932,6.2074,161.1,161.01,29.63]
[1721149940132,6.2078,161.09,161.01,29.63]
[1721149940337,6.2074,161.1,161.01,29.63]
[1721149940830,20.0,161.11,161.01,29.63]
[1721149940831,6.2078,161.09,161.01,29.63]
[1721149941039,26.2072,161.11,161.01,29.63]
[1721149941745,6.2054,161.15,161.04,29.63]
[1721149941929,15.5114,161.18,161.07,29.63]
[1721149942124,6.2052,161.16,161.07,29.63]
[1721149942316,6.2055,161.15,161.07,29.63]
[1721149942504,6.2058,161.14,161.07,29.63]
[1721149942706,6.2064,161.13,161.07,29.63]
[1721149943027,6.2066,161.12,161.07,29.63]
[1721149943218,6.2066,161.12,161.04,29.63]
[1721149943745,6.2062,161.13,161.04,29.63]
[1721149943932,10.0,161.14,161.04,29.63]
[1721149944244,6.2073,161.1,161.02,22.5023]
[1721149944448,6.2087,161.07,161.02,6.0223]
[1721149944612,10.0,161.12,161.02,6.0223]
[1721149944613,6.2082,161.08,161.02,6.0223]
[1721149944813,6.2078,161.09,161.02,6.0223]
[1721149945039,6.2081,161.08,161.02,6.0223]
[1721149945213,6.2085,161.07,161.02,6.0223]
[1721149945414,6.2089,161.06,160.98,46.11]
[1721149945930,51.2093,161.05,160.97,6.0223]
[1721149946140,6.2097,161.04,160.97,6.0223]
[1721149946640,45.0,161.05,160.97,6.0223]
[1721149946813,10.0,161.07,160.97,6.0223]
[1721149946814,45.0,161.06,160.97,6.0223]
[1721149947018,20.0,161.05,160.97,6.0223]
[1721149947746,6.2084,161.08,160.98,29.63]
[1721149947949,20.0,161.07,160.98,29.63]
[1721149948235,10.0,161.09,160.98,29.63]
[1721149948442,6.2087,161.07,160.98,29.63]
[1721149948616,15.652,161.11,160.98,29.63]
[1721149948942,6.2085,161.07,160.98,29.63]
[1721149949318,10.0,161.09,160.98,29.63]
[1721149949519,65.0,161.08,160.98,29.63]
[1721149950139,10.0,161.07,160.98,29.63]
[1721149950345,10.0,161.07,160.97,6.0223]
[1721149950346,6.2097,161.04,160.97,6.0223]
[1721149951047,45.0,161.06,160.97,6.0223]
[1721149951048,6.21,161.03,160.97,6.0223]
[1721149951353,6.2097,161.04,160.97,6.0223]
[1721149952126,6.2101,161.03,160.97,6.0223]
[1721149952650,6.2096,161.04,160.97,6.0223]
[1721149953326,6.21,161.03,160.97,6.0223]
[1721149953621,51.2089,161.06,160.97,6.0223]
[1721149954141,45.0,161.06,160.97,6.0223]
[1721149954445,6.209,161.06,160.98,29.63]
[1721149954653,6.2085,161.07,160.98,29.63]
[1721149955026,6.2088,161.06,160.98,29.63]
[1721149955226,6.2092,161.05,160.98,29.63]
[1721149955744,6.2089,161.06,160.98,29.63]
[1721149956844,6.2099,161.04,160.97,6.0223]
[1721149957057,51.2093,161.05,160.97,6.0223]
[1721149957342,6.2093,161.05,160.97,6.0223]
[1721149958537,6.2089,161.06,160.97,6.0223]
[1721149958848,30.0,161.08,160.97,6.0223]
[1721149959149,6.2092,161.05,160.97,6.0223]
[1721149960053,6.2097,161.04,160.97,6.0223]